bitfinex/quotes_SOLUSD_20250902
["timestamp","ask_amount","ask_price","bid_price","bid_amount"]
[1756811722492,0.69,203.03,203.02,33.72562693]
[1756811724506,0.69,203.03,203.0,4.92606194]
[1756811724711,13.59559401,203.01,203.0,4.92606194]
[1756811725029,14.28559401,203.01,203.0,4.92606194]
[1756811727927,14.28559401,203.01,203.0,2.80000384]
[1756811729208,14.28559401,203.01,203.0,28.80000384]
[1756811729408,38.4,203.02,203.0,33.72611221]
[1756811729607,1e-08,203.04,203.01,2.80000384]
[1756811729608,38.36000001,203.04,203.01,2.80000384]
[1756811729827,38.36000001,203.04,203.03,2.80000384]
[1756811729828,52.64559402,203.04,203.03,2.80000384]
[1756811730202,38.36000001,203.04,203.03,2.80000384]
[1756811730402,38.36000001,203.04,203.03,26.0]
[1756811730706,38.36000001,203.04,203.03,28.80000384]
[1756811730898,1e-08,203.04,203.03,26.0]
[1756811731102,1e-08,203.04,203.03,28.80000384]
[1756811731904,1e-08,203.04,203.03,33.72538432]
[1756811733938,1e-08,203.04,203.03,8.37538432]
[1756811734097,1e-08,203.04,203.03,34.51754589]
[1756811734432,1e-08,203.04,203.03,49.31956883]
[1756811734606,1e-08,203.04,203.03,23.31956883]
[1756811735739,1e-08,203.05,203.04,26.14216157]
[1756811735907,1e-08,203.05,203.04,34.51730331]
[1756811736568,0.06,203.1,203.04,71.45583757]
[1756811736700,0.69,203.14,203.11,26.0]
[1756811736905,0.69,203.14,203.11,2.80000384]
[1756811737212,51.95559401,203.16,203.11,2.80000384]
[1756811737419,0.69,203.14,203.11,4.77312013]
[1756811737604,0.69,203.14,203.11,2.80000384]
[1756811738016,0.69,203.14,203.11,4.9234405]
[1756811738220,0.69,203.14,203.11,7.72344434]
[1756811739441,13.65559401,203.15,203.11,7.72344434]
[1756811739638,0.06,203.15,203.13,26.0]
[1756811739819,0.06,203.15,203.14,2.80000384]
[1756811740438,0.06,203.15,203.14,7.72271723]
[1756811741634,0.71,203.15,203.14,7.72271723]
[1756811741824,0.06,203.15,203.14,7.72271723]
[1756811747034,0.06,203.15,203.14,7.8648788]
[1756811747244,0.06,203.17,203.16,26.14216157]
[1756811747435,0.06,203.17,203.16,28.94216541]
[1756811747759,0.06,203.17,203.16,29.59216541]
[1756811747957,0.06,203.17,203.16,28.11459679]
[1756811748161,0.06,203.17,203.16,30.91460063]
[1756811748861,0.06,203.17,203.16,36.48682941]
[1756811749435,1e-08,203.17,203.16,36.48682941]
[1756811749657,0.06,203.2,203.17,0.14216157]
[1756811749835,0.06,203.2,203.19,40.0000192]
[1756811750036,0.06,203.21,203.2,26.14216157]
[1756811750250,0.06,203.21,203.2,40.79218077]
[1756811750758,1e-08,203.21,203.2,42.76422701]
[1756811750961,1e-08,203.21,203.2,47.68548685]
[1756811751556,1e-08,203.21,203.2,47.03548685]
[1756811753058,1e-08,203.21,203.2,47.68548685]
[1756811753363,1e-08,203.21,203.2,47.03548685]
[1756811755565,1e-08,203.21,203.2,71.31546765]
[1756811755872,1e-08,203.21,203.2,85.31548685]
[1756811759055,0.2,203.25,203.2,45.98861725]
[1756811759244,0.2,203.25,203.24,2.80000384]
[1756811759443,0.2,203.25,203.24,41.22216541]
[1756811760171,0.2,203.25,203.24,43.19382284]
[1756811760376,0.2,203.25,203.24,48.11411412]
[1756811761653,1e-08,203.25,203.24,48.11411412]
[1756811761872,0.06,203.28,203.27,26.14216157]
[1756811761873,0.65000001,203.28,203.27,26.14216157]
[1756811762071,0.65000001,203.28,203.27,2.94216541]
[1756811762576,0.65000001,203.28,203.27,21.45732453]
[1756811762956,1e-08,203.28,203.27,7.86173052]
[1756811765859,0.65000001,203.28,203.27,4.91956511]
[1756811766163,0.65000001,203.28,203.27,33.71956895]
[1756811766851,1e-08,203.28,203.27,33.71956895]
[1756811767056,1e-08,203.28,203.27,7.71956895]
[1756811767670,0.65000001,203.28,203.27,7.71956895]
[1756811768178,0.65000001,203.28,203.27,33.71956895]
[1756811768372,0.65000001,203.28,203.27,7.71956895]
[1756811769259,0.65000001,203.28,203.27,33.71956895]
[1756811769465,0.65000001,203.28,203.27,30.91956511]
[1756811769763,0.65000001,203.28,203.27,35.28103639]
[1756811772182,1e-08,203.28,203.27,35.28103639]
[1756811773572,1e-08,203.28,203.27,35.42319796]
[1756811775173,1e-08,203.28,203.27,36.07319796]
[1756811775481,1e-08,203.28,203.27,69.93172668]
[1756811775681,1e-08,203.28,203.27,74.29319796]
[1756811776270,1e-08,203.28,203.27,76.26446671]
[1756811776485,1e-08,203.28,203.27,75.61446671]
[1756811777088,1e-08,203.28,203.27,76.26446671]
[1756811778181,1e-08,203.28,203.27,75.61446671]
[1756811779983,1e-08,203.28,203.27,75.64446671]
[1756811780991,1e-08,203.28,203.27,79.52688383]
[1756811781364,1e-08,203.28,203.27,75.64446671]
[1756811781981,1e-08,203.28,203.27,75.60446671]
[1756811783265,1e-08,203.28,203.27,37.42446671]
[1756811783466,0.69000001,203.28,203.27,73.49103639]
[1756811783667,0.69000001,203.28,203.27,35.31103639]
[1756811784077,0.69000001,203.28,203.27,35.45319796]
[1756811790380,0.69000001,203.28,203.27,4.94956511]
[1756811790600,14.28559402,203.28,203.27,4.94956511]
[1756811790804,14.28559402,203.28,203.27,30.94956511]
[1756811791475,14.28559402,203.28,203.27,35.31103639]
[1756811791683,0.69000001,203.28,203.27,35.31103639]
[1756811793902,0.69000001,203.28,203.27,30.94956511]
[1756811794119,0.69000001,203.28,203.27,35.31103639]
[1756811796506,0.69000001,203.28,203.27,26.03]
[1756811798284,0.69000001,203.28,203.27,0.03]
[1756811800490,18.93138844,203.28,203.27,0.03]
[1756811801982,57.07138844,203.28,203.27,0.03]
[1756811802188,52.70991716,203.28,203.27,0.03]
[1756811803014,14.56991716,203.28,203.27,0.03]
[1756811803206,52.68991716,203.28,203.27,0.03]
[1756811803407,14.56991716,203.28,203.27,0.03]
[1756811803611,52.68991716,203.28,203.27,0.03]
[1756811808017,51.67559402,203.28,203.27,4.39147128]
[1756811808210,51.67559402,203.28,203.27,9.31103639]
[1756811808420,38.10000001,203.28,203.27,9.96103639]
[1756811808593,1e-08,203.28,203.27,10.10319796]
[1756811810099,1e-08,203.28,203.27,14.46466924]
[1756811810303,0.06,203.3,203.29,26.14216157]
[1756811810613,0.06,203.3,203.29,8.86510413]
[1756811810807,1e-08,203.33,203.32,26.14216157]
[1756811811000,1e-08,203.33,203.32,30.50363285]
[1756811812315,1e-08,203.33,203.32,35.42198815]
[1756811813506,0.70000001,203.33,203.32,4.9183553]
[1756811813710,13.59559401,203.32,203.31,4.9183936]
[1756811813913,13.59559401,203.32,203.31,9.27986488]
[1756811814105,14.29559401,203.32,203.31,35.27986488]
[1756811815923,14.29559401,203.32,203.31,9.27986488]
[1756811818329,13.59559401,203.32,203.31,35.27986488]
[1756811818704,1e-08,203.33,203.31,35.27986488]
[1756811818905,38.10000001,203.33,203.32,4.36147128]
[1756811820233,38.10000001,203.33,203.31,30.9183936]
[1756811820530,1e-08,203.33,203.32,9.27982658]
[1756811821129,1e-08,203.33,203.32,9.92982658]
[1756811821329,1e-08,203.33,203.32,10.07198815]
[1756811822111,1e-08,203.33,203.32,9.42198815]
[1756811825537,1e-08,203.33,203.32,5.06051687]
[1756811825846,1e-08,203.33,203.32,9.42198815]
[1756811827427,1e-08,203.33,203.32,10.07198815]
[1756811827740,1e-08,203.33,203.32,9.42198815]
[1756811828537,1e-08,203.33,203.32,10.07198815]
[1756811829208,1e-08,203.33,203.32,19.4939763]
[1756811829409,1e-08,203.34,203.33,0.14216157]
[1756811829638,0.06,203.37,203.36,26.14216157]
[1756811829834,1e-08,203.37,203.36,31.15363285]
[1756811830029,1e-08,203.37,203.36,33.12402767]
[1756811830232,1e-08,203.37,203.36,38.04141555]
[1756811830432,0.71000001,203.37,203.36,37.24925398]
[1756811830616,0.71000001,203.37,203.36,30.91738788]
[1756811831228,1e-08,203.37,203.36,35.42102073]
[1756811831430,1e-08,203.37,203.36,33.84828109]
[1756811832631,0.71000001,203.37,203.36,31.05954945]
[1756811832836,0.71000001,203.37,203.36,33.84828109]
[1756811833049,14.30559402,203.37,203.36,33.70611952]
[1756811837246,14.30559402,203.37,203.36,4.91738788]
[1756811844542,1e-08,203.37,203.36,7.70611952]
[1756811846832,0.71000001,203.37,203.36,7.70611952]
[1756811847029,0.71000001,203.37,203.36,4.91738788]
[1756811847446,1e-08,203.37,203.36,4.91738788]
[1756811849063,1e-08,203.37,203.36,7.70611952]
[1756811849257,1e-08,203.37,203.36,7.73611952]
[1756811849765,0.71000001,203.37,203.36,7.73611952]
[1756811850155,0.71000001,203.37,203.36,4.94738788]
[1756811850334,1e-08,203.37,203.36,4.94738788]
[1756811851345,0.71000001,203.37,203.36,4.94738788]
[1756811855063,14.30559402,203.37,203.36,30.94738788]
[1756811857172,17.3786488,203.37,203.36,0.03]
[1756811857358,13.87991715,203.36,203.33,0.03]
[1756811857562,3.07305478,203.34,203.33,0.03]
[1756811857949,3.78305478,203.34,203.33,0.03]
[1756811859455,17.37864879,203.34,203.33,0.03]
[1756811859673,22.29652033,203.34,203.33,0.03]
[1756811859967,55.43864879,203.34,203.33,0.03]
[1756811860155,52.64991715,203.34,203.33,0.03]
[1756811860359,55.43864879,203.34,203.33,0.03]
[1756811861170,14.58991715,203.34,203.33,0.03]
[1756811861472,55.43864879,203.34,203.33,0.03]
[1756811864065,17.37864879,203.34,203.33,0.03]
[1756811864263,55.43864879,203.34,203.33,0.03]
[1756811865576,60.35652033,203.34,203.33,0.03]
[1756811866359,0.28432314,203.32,203.31,0.03]
[1756811866555,54.72864879,203.32,203.31,0.03]
[1756811866870,55.43864879,203.32,203.31,0.03]
[1756811867768,60.35700409,203.32,203.31,0.03]
[1756811869193,13.87991715,203.31,203.3,0.03]
[1756811869376,27.82357535,203.31,203.3,0.03]
[1756811869674,28.53357535,203.31,203.3,0.03]
[1756811870377,55.43864879,203.31,203.3,0.03]
[1756811871362,60.357246,203.31,203.3,0.03]
[1756811872172,71.51217256,203.31,203.3,0.03]
[1756811876480,14.58991715,203.31,203.3,0.03]
[1756811876787,55.43864879,203.31,203.3,0.03]
[1756811879790,71.51217256,203.31,203.3,0.03]
[1756811880378,0.28432314,203.3,203.28,0.03]
[1756811880684,54.72864879,203.29,203.28,0.03]
[1756811880885,55.43864879,203.29,203.28,0.03]
[1756811883276,60.3577299,203.29,203.28,0.03]
[1756811884295,0.28432314,203.28,203.27,0.03]
[1756811884590,16.66864879,203.28,203.27,0.03]
[1756811884907,17.37864879,203.28,203.27,0.03]
[1756811886397,22.29797189,203.28,203.27,0.03]
[1756811888192,0.28432314,203.26,203.25,0.03]
[1756811888393,56.87972429,203.26,203.25,0.03]
[1756811888583,60.37845593,203.26,203.25,0.03]
[1756811889097,13.87991715,203.25,203.24,0.03]
[1756811889396,21.58869799,203.25,203.24,0.03]
[1756811889604,22.29869799,203.25,203.24,0.03]
[1756811890099,0.28432314,203.24,203.22,0.03]
[1756811890304,199.84573692,203.23,203.22,0.03]
[1756811890503,200.55573692,203.23,203.22,0.03]
[1756811890706,200.55573692,203.23,203.15,0.1]
[1756811890707,16.66864879,203.16,203.15,0.1]
[1756811890879,54.74864879,203.16,203.15,0.1]
[1756811891085,54.74864879,203.16,203.15,0.78]
[1756811891726,56.32900235,203.16,203.15,5.70247108]
[1756811892699,56.32900235,203.16,203.15,0.1]
[1756811894006,57.03900235,203.16,203.15,0.1]
[1756811894378,56.32900235,203.16,203.15,0.1]
[1756811896908,57.03900235,203.16,203.15,0.1]
[1756811897483,18.95900235,203.16,203.15,0.1]
[1756811897806,56.32900235,203.16,203.15,0.1]
[1756811900712,57.03900235,203.16,203.15,0.1]
[1756811901784,18.95900235,203.16,203.15,0.1]
[1756811902404,57.03900235,203.16,203.15,0.1]
[1756811903087,52.66991715,203.16,203.15,0.1]
[1756811903282,57.03900235,203.16,203.15,0.1]
[1756811904516,18.95900235,203.16,203.15,0.1]
[1756811904693,56.32900235,203.16,203.15,0.1]
[1756811905510,57.03900235,203.16,203.15,0.1]
[1756811907596,52.66991715,203.16,203.15,0.1]
[1756811907797,57.03900235,203.16,203.15,0.1]
[1756811911227,61.96123113,203.16,203.15,0.1]
[1756811912129,63.93493158,203.16,203.15,0.1]
[1756811912297,61.96123113,203.16,203.15,0.1]
[1756811918510,57.61214593,203.16,203.15,0.1]
[1756811918712,61.98123113,203.16,203.15,0.1]
[1756811926844,63.95493157,203.16,203.15,0.1]
[1756811927143,61.98123113,203.16,203.15,0.1]
[1756811928023,63.95493158,203.16,203.15,0.1]
[1756811930430,68.04940243,203.16,203.15,0.1]
[1756811934250,63.95493158,203.16,203.15,0.1]
[1756811935529,14.02207872,203.15,203.14,0.03]
[1756811935735,23.87774809,203.15,203.14,0.03]
[1756811935927,24.54774809,203.15,203.14,0.03]
[1756811936127,62.62774809,203.15,203.14,0.03]
[1756811936839,64.60183816,203.15,203.14,0.03]
[1756811937034,73.4393686,203.15,203.14,0.03]
[1756811938750,69.52430924,203.15,203.14,0.03]
[1756811941155,65.15522404,203.15,203.14,0.03]
[1756811941454,69.52430924,203.15,203.14,0.03]
[1756811942245,68.85430924,203.15,203.14,0.03]
[1756811942650,52.40522404,203.15,203.14,0.03]
[1756811942956,29.25971505,203.15,203.14,0.03]
[1756811943133,63.2255635,203.15,203.14,0.03]
[1756811943458,63.8955635,203.15,203.14,0.03]
[1756811944142,39.87991715,203.13,203.12,0.1]
[1756811944456,86.44363802,203.13,203.12,0.1]
[1756811944661,87.11363802,203.13,203.12,0.1]
[1756811944862,94.01068383,203.13,203.12,0.1]
[1756811945532,94.1528454,203.13,203.12,0.1]
[1756811945852,90.03820973,203.13,203.12,0.1]
[1756811947645,89.36820973,203.13,203.12,0.1]
[1756811948449,51.14604816,203.13,203.12,0.1]
[1756811948770,89.22604816,203.13,203.12,0.1]
[1756811948967,51.14604816,203.13,203.12,0.1]
[1756811949176,58.01876928,203.13,203.12,0.78]
[1756811949543,63.22604816,203.13,203.12,0.78]
[1756811950268,20.22309242,203.13,203.12,0.78]
[1756811950473,63.22604816,203.13,203.12,0.78]
[1756811951041,15.85400722,203.13,203.12,0.78]
[1756811951247,13.87991715,203.13,203.12,0.78]
[1756811951570,56.32900235,203.13,203.12,0.78]
[1756811951786,56.32900235,203.13,203.12,0.1]
[1756811952464,61.25195809,203.13,203.12,0.1]
[1756811953070,63.22575592,203.13,203.12,0.1]
[1756811953461,59.68070255,203.13,203.12,0.1]
[1756811955368,61.65450039,203.13,203.12,0.1]
[1756811955542,58.85667073,203.13,203.12,0.1]
[1756811955749,62.32450039,203.13,203.12,0.1]
[1756811956473,62.32450039,203.13,203.11,0.03]
[1756811956474,14.02207872,203.12,203.11,0.03]
[1756811956648,16.81990838,203.12,203.11,0.03]
[1756811956849,17.48990838,203.12,203.11,0.03]
[1756811957454,19.46419332,203.12,203.11,0.03]
[1756811957672,0.14216157,203.11,203.1,0.03]
[1756811957850,66.09122702,203.11,203.1,0.03]
[1756811958045,66.76122702,203.11,203.1,0.03]
[1756811958277,40.02207872,203.1,203.09,0.03]
[1756811958461,59.49912099,203.1,203.09,0.03]
[1756811958663,193.96912099,203.1,203.09,0.03]
[1756811959264,198.8928039,203.1,203.09,0.03]
[1756811959464,200.86738121,203.1,203.09,0.03]
[1756811963502,67.06738121,203.1,203.09,0.03]
[1756811964073,61.57948724,203.1,203.09,0.03]
[1756811967876,40.02207872,203.08,203.07,0.03]
[1756811968188,78.10207872,203.08,203.07,0.03]
[1756811968386,81.56990838,203.08,203.07,0.03]
[1756811968603,83.54468066,203.08,203.07,0.03]
[1756811968994,45.46468066,203.08,203.07,0.03]
[1756811969302,83.54468066,203.08,203.07,0.03]
[1756811969516,39.73775558,203.04,203.03,0.03]
[1756811969676,80.89990838,203.04,203.03,0.03]
[1756811970101,83.54497319,203.04,203.03,0.03]
[1756811971609,88.47011109,203.04,203.03,0.03]
[1756811971811,50.39011109,203.04,203.03,0.03]
[1756811972008,88.47011109,203.04,203.03,0.03]
[1756811973001,85.67228143,203.04,203.03,0.03]
[1756811973203,88.47011109,203.04,203.03,0.03]
[1756811975390,87.80011109,203.04,203.03,0.03]
[1756811975996,49.72011109,203.04,203.03,0.03]
[1756811976187,87.80011109,203.04,203.03,0.03]
[1756811976389,88.47011109,203.04,203.03,0.03]
[1756811978812,88.47011109,203.04,203.0,0.03]
[1756811978813,16.67774681,203.01,203.0,0.03]
[1756811979110,54.75774681,203.01,203.0,0.03]
[1756811979513,61.65877486,203.01,203.0,0.03]
[1756811980400,62.33877486,203.01,203.0,0.03]
[1756811980707,58.8609452,203.01,203.0,0.03]
[1756811980915,61.65877486,203.01,203.0,0.03]
[1756811981113,62.33877486,203.01,203.0,0.03]
[1756811981313,61.65877486,203.01,203.0,0.03]
[1756811981516,62.33877486,203.01,203.0,0.03]
[1756811982018,73.5300935,203.01,203.0,0.03]
[1756811982316,72.8500935,203.01,203.0,0.03]
[1756811982502,73.5300935,203.01,203.0,0.03]
[1756811982897,61.65877486,203.01,203.0,0.03]
[1756811983416,72.8500935,203.01,203.0,0.03]
[1756811983592,73.5300935,203.01,203.0,0.03]
[1756811984130,13.87991715,203.0,202.98,0.03]
[1756811984434,54.75774681,202.99,202.98,0.03]
[1756811985008,51.95991715,202.99,202.98,0.03]
[1756811985203,54.75774681,202.99,202.98,0.03]
[1756811985620,56.8862682,202.99,202.98,0.03]
[1756811985824,59.68409786,202.99,202.98,0.03]
[1756811988422,60.36409786,202.99,202.98,0.03]
[1756811988729,59.68409786,202.99,202.98,0.03]
[1756811989100,61.65935773,202.99,202.98,0.03]
[1756811990233,20.78152807,202.99,202.98,0.03]
[1756811990408,56.73300668,202.99,202.98,0.71]
[1756811990740,53.93517702,202.99,202.98,0.71]
[1756811991029,56.73300668,202.99,202.98,0.71]
[1756811991607,53.93517702,202.99,202.98,0.71]
[1756811991834,56.73300668,202.99,202.98,0.71]
[1756811992026,61.71935773,202.99,202.98,0.71]
[1756811992514,56.79300668,202.99,202.98,0.71]
[1756811993346,39.87991715,202.96,202.95,0.03]
[1756811993619,85.68482603,202.96,202.95,0.03]
[1756811994126,61.66057372,202.96,202.95,0.71]
[1756811994327,61.66057372,202.96,202.95,0.03]
[1756811995420,20.78274406,202.96,202.95,0.03]
[1756811995723,61.66057372,202.96,202.95,0.03]
[1756811997017,58.86274406,202.96,202.95,0.03]
[1756811997205,61.66057372,202.96,202.95,0.03]
[1756811997932,56.7334945,202.96,202.95,0.03]
[1756811998111,61.66057372,202.96,202.95,0.03]
[1756811998723,15.85566484,202.96,202.95,0.03]
[1756811998926,51.95991715,202.96,202.95,0.71]
[1756811999606,51.67559401,202.96,202.95,0.71]
[1756812000128,51.81775558,202.96,202.95,0.71]
[1756812000629,56.88699637,202.96,202.95,0.03]
[1756812001215,61.8396646,202.96,202.95,0.03]
[1756812001532,56.91258538,202.96,202.95,0.71]
[1756812002113,51.95991715,202.96,202.95,0.71]
[1756812002315,51.95991715,202.96,202.95,0.03]
[1756812003623,51.95991715,202.96,202.95,3.50782966]
[1756812003624,13.59559401,202.96,202.95,3.50782966]
[1756812003831,51.67559401,202.96,202.95,8.43515166]
[1756812004014,51.81775558,202.96,202.95,8.43515166]
[1756812004355,51.95991715,202.96,202.95,0.71]
[1756812004512,51.95991715,202.96,202.95,3.50782966]
[1756812005524,51.95991715,202.96,202.95,8.43515166]
[1756812005840,51.67559401,202.96,202.95,8.43515166]
[1756812006129,51.67559401,202.96,202.95,5.637322]
[1756812006335,51.67559401,202.96,202.95,8.43515166]
[1756812006707,51.67559401,202.96,202.95,5.637322]
[1756812006937,51.67559401,202.96,202.95,8.43515166]
[1756812007136,38.08,202.96,202.95,8.43515166]
[1756812007325,38.08,202.97,202.95,20.75345666]
[1756812007521,51.67559401,202.98,202.97,26.0]
[1756812007720,0.06,202.99,202.98,26.0]
[1756812007937,38.14,202.99,202.98,33.72442341]
[1756812008106,0.06,202.99,202.98,34.40442341]
[1756812010128,13.59559401,202.98,202.96,14.80859886]
[1756812010331,13.59559401,202.98,202.95,0.71]
[1756812010332,13.59559401,202.96,202.95,0.03]
[1756812010523,51.97991715,202.96,202.95,0.03]
[1756812010720,51.97991715,202.96,202.95,5.637322]
[1756812010925,51.69559401,202.96,202.95,8.43515166]
[1756812011124,38.1,202.97,202.95,8.43515166]
[1756812011327,38.1,202.97,202.96,3.47782966]
[1756812012133,38.1,202.97,202.96,8.40490888]
[1756812012836,13.87991715,202.96,202.95,26.03]
[1756812013243,13.87991715,202.96,202.95,33.75515166]
[1756812015450,13.87991715,202.96,202.95,35.33353326]
[1756812015617,13.87991715,202.96,202.95,30.957322]
[1756812016119,13.87991715,202.96,202.95,35.33353326]
[1756812017545,13.87991715,202.96,202.95,30.957322]
[1756812018352,51.95991715,202.96,202.95,0.03]
[1756812018646,52.03991715,202.96,202.95,0.03]
[1756812018847,0.72,202.99,202.95,31.08621126]
[1756812018848,0.06,202.99,202.95,31.08621126]
[1756812019060,51.75559401,202.98,202.97,26.0]
[1756812019547,51.75559401,202.98,202.97,4.92683647]
[1756812020330,51.75559401,202.98,202.97,9.30304773]
[1756812020544,51.75559401,202.98,202.97,4.92683647]
[1756812020850,13.59559401,202.98,202.97,9.30304773]
[1756812021147,51.75559401,202.98,202.97,9.30304773]
[1756812021549,51.75559401,202.98,202.97,30.92683647]
[1756812021754,13.87991715,202.97,202.96,26.0]
[1756812021948,13.87991715,202.97,202.96,30.37621126]
[1756812023127,13.87991715,202.97,202.96,26.0]
[1756812023327,13.87991715,202.97,202.96,30.37621126]
[1756812023532,13.87991715,202.97,202.96,35.30329048]
[1756812023754,13.87991715,202.97,202.96,30.92707922]
[1756812024053,13.87991715,202.97,202.96,35.30329048]
[1756812024656,38.16,202.98,202.96,35.98329048]
[1756812024853,0.06,202.99,202.98,26.0]
[1756812025154,0.06,202.99,202.98,30.37621126]
[1756812025340,0.06,202.99,202.98,45.18481012]
[1756812025535,0.06,202.99,202.98,40.80859886]
[1756812025742,0.06,202.99,202.98,35.30280501]
[1756812026649,0.06,202.99,202.97,14.80859886]
[1756812026650,38.18,202.99,202.97,40.80859886]
[1756812026873,38.18,202.99,202.97,30.37621126]
[1756812027237,38.18,202.99,202.98,4.37621126]
[1756812027855,38.18,202.99,202.98,9.30280501]
[1756812028059,38.18,202.99,202.98,4.92659375]
[1756812028262,38.18,202.99,202.98,9.30280501]
[1756812030053,38.18,202.99,202.98,9.98280501]
[1756812030228,38.18,202.99,202.98,9.30280501]
[1756812031859,38.18,202.99,202.97,4.92680836]
[1756812031860,13.59559401,202.98,202.97,4.92680836]
[1756812032052,14.53991715,202.98,202.97,4.92680836]
[1756812032360,14.53991715,202.98,202.95,0.03]
[1756812032361,0.28432314,202.97,202.95,0.03]
[1756812032566,56.37612841,202.96,202.95,0.03]
[1756812032744,57.03612841,202.96,202.95,0.03]
[1756812034240,52.65991715,202.96,202.95,0.03]
[1756812034445,57.03612841,202.96,202.95,0.03]
[1756812034648,38.40432314,202.96,202.95,0.03]
[1756812034851,51.99991715,202.96,202.95,0.03]
[1756812035139,52.65991715,202.96,202.95,0.03]
[1756812036159,57.03612841,202.96,202.95,0.03]
[1756812037065,56.37612841,202.96,202.95,0.03]
[1756812037452,57.03612841,202.96,202.95,0.03]
[1756812038157,52.65991715,202.96,202.95,0.03]
[1756812038366,57.03612841,202.96,202.95,0.03]
[1756812039164,18.91612841,202.96,202.95,0.03]
[1756812039365,57.03612841,202.96,202.95,0.03]
[1756812041942,57.03612841,202.96,202.95,26.03]
[1756812041943,57.08612841,202.96,202.95,26.03]
[1756812042148,51.97991715,202.96,202.95,26.03]
[1756812042355,51.97991715,202.96,202.95,4.957322]
[1756812042852,13.65559401,202.99,202.95,10.01353326]
[1756812043052,13.65559401,202.99,202.96,5.05621126]
[1756812043053,13.59559401,202.97,202.96,5.05621126]
[1756812043367,0.14216157,202.96,202.95,0.03]
[1756812043549,56.94396684,202.96,202.95,26.03]
[1756812043747,51.99991715,202.96,202.95,30.957322]
[1756812043945,56.37612841,202.96,202.95,30.957322]
[1756812044469,56.37612841,202.96,202.95,0.03]
[1756812044470,57.08612841,202.96,202.95,0.03]
[1756812045080,56.94396684,202.96,202.95,0.03]
[1756812045252,61.87104606,202.96,202.95,0.03]
[1756812045448,63.8465986,202.96,202.95,0.03]
[1756812046948,63.98876017,202.96,202.95,0.03]
[1756812047464,59.35951938,202.96,202.95,0.03]
[1756812047850,59.50168095,202.96,202.95,0.03]
[1756812048070,59.35951938,202.96,202.95,0.03]
[1756812048576,59.50168095,202.96,202.95,0.03]
[1756812049250,64.42876017,202.96,202.95,0.03]
[1756812049959,59.50168095,202.96,202.95,0.03]
[1756812050163,20.94168095,202.96,202.95,0.03]
[1756812050359,60.30168095,202.96,202.95,0.03]
[1756812050671,58.36612841,202.96,202.95,0.03]
[1756812052175,57.65612841,202.96,202.95,0.03]
[1756812052378,58.91699637,202.96,202.95,0.03]
[1756812052584,63.29320763,202.96,202.95,0.03]
[1756812052949,58.36612841,202.96,202.95,0.03]
[1756812053360,63.29320763,202.96,202.95,0.03]
[1756812053574,13.87991715,202.95,202.93,0.03]
[1756812053890,58.07612841,202.94,202.93,0.03]
[1756812054067,58.78612841,202.94,202.93,0.03]
[1756812054783,63.71535075,202.94,202.93,0.03]
[1756812055273,63.00535075,202.94,202.93,0.03]
[1756812055480,23.18535075,202.94,202.93,0.03]
[1756812055662,63.67535075,202.94,202.93,0.03]
[1756812055860,62.96535075,202.94,202.93,0.03]
[1756812056084,63.67535075,202.94,202.93,0.03]
[1756812056597,64.07535075,202.94,202.93,0.03]
[1756812057485,63.34535075,202.94,202.93,0.03]
[1756812057982,58.96913949,202.94,202.93,0.03]
[1756812058176,63.34535075,202.94,202.93,0.03]
[1756812058569,64.05535075,202.94,202.93,0.03]
[1756812059580,59.67913949,202.94,202.93,0.03]
[1756812059894,64.05535075,202.94,202.93,0.03]
[1756812060971,64.11535075,202.94,202.93,0.03]
[1756812061967,64.43535075,202.94,202.93,0.03]
[1756812062168,23.89535075,202.94,202.93,0.03]
[1756812062491,64.43535075,202.94,202.93,0.03]
[1756812062987,65.12886585,202.94,202.93,0.03]
[1756812063387,69.50507711,202.94,202.93,0.03]
[1756812063688,14.02207872,202.93,202.92,0.05468082]